Cogmind - Beta 14 @@@ ROGUE MODE // 2024.09.30 @ 20:43:24 Player: Cherman0 Result: Destroyed by as-67686 with Assembled Blade Performance ------------- Evolutions (0) 0 Regions Visited (2) 400 Robots Destroyed (32) 160 Value Destroyed (510) 510 Prototype IDs (4) 80 Alien Tech Used (0) 0 Bonus (0) 0 TOTAL SCORE: 1150 Bonus ------- None Cogmind --------- Core Integrity 0/250 Matter 266/300 Energy 196/250 System Corruption 12% Temperature Cool (35) Movement Treading (160) Location -10/Mines Parts ------- > --- POWER (1) -------- Ion Engine > --- PROPULSION (2) --- Light Treads Light Treads > --- UTILITY (2) ------ Large Storage Unit > --- WEAPON (2) ------- EM Pulse Gun > --- INVENTORY (15) --- Light Ion Engine Aluminum Leg Aluminum Leg Compact Wheel Compact Wheel Large Matter Pod (150) Small Laser Light Assault Rifle Light Assault Rifle Grenade Launcher Mining Laser Peak State ------------ > --- POWER ------------ Ion Engine > --- PROPULSION ------- Light Treads Light Treads > --- UTILITY ---------- Large Storage Unit Seismic Detector > --- WEAPON ----------- Small Laser Light Assault Rifle > --- INVENTORY -------- Light Ion Engine Light Treads Aluminum Leg Aluminum Leg Compact Wheel Compact Wheel EM Pulse Gun EM Pulse Gun Grenade Launcher Mining Laser [Rating: 8] Favorites ----------- Power Ion Engine Engine Ion Engine Propulsion Light Treads Treads Light Treads Leg Aluminum Leg Utility Seismic Detector Device Seismic Detector Storage Large Storage Unit Weapon Light Assault Rifle Energy Gun Medium Laser Ballistic Gun Light Assault Rifle Launcher Grenade Launcher Build | -11 -10 -10 ------- Run | Yrd Mat Min Slots Evolved . | . . . Power . | . . . Propulsion . | . . . Utility . | . . . Weapon . | . . . Parts Attached 17 | 3 9 5 Power 1 | . . 1 Engine 1 | . . 1 Core . | . . . Reactor . | . . . Propulsion 6 | 2 2 2 Treads 6 | 2 2 2 Leg . | . . . Wheel . | . . . Hover . | . . . Flight . | . . . Utility 2 | 1 1 . Device 1 | 1 . . Storage 1 | . 1 . Processor . | . . . Hackware . | . . . Protection . | . . . Artifact . | . . . Weapon 8 | . 6 2 Energy Gun 5 | . 3 2 Energy Cannon . | . . . Ballistic Gun 1 | . 1 . Ballistic Cannon . | . . . Launcher 2 | . 2 . Special Weapon . | . . . Impact Weapon . | . . . Slashing Weapon . | . . . Piercing Weapon . | . . . Special Melee Weapon . | . . . Unidentified Prototypes . | . . . Parts Lost 6 | . . 6 Power . | . . . Propulsion 2 | . . 2 Utility 1 | . . 1 Weapon 3 | . . 3 Highest Loss Streak 6 | . . 6 To Critical Strikes . | . . . Average Slot Usage (%) 99 | . 100 98 Engine 14 | . 14 14 Treads 28 | . 28 28 Device 13 | . 14 13 Storage 14 | . 14 14 Energy Gun 13 | . 13 14 Ballistic Gun 13 | . 14 13 Peak Build Rating 8 | 7 8 8 Average Rating 7 | 6 7 7 On Entrance 7 | 6 7 8 Naked Turns . | . . . Heaviest Build 30 | 13 30 30 Greatest Support 40 | 40 40 40 Greatest Overweight (x) . | . . . Average Overweight (x) . | . . . Largest Inventory Capacity 15 | 8 15 15 Average Capacity 14 | 8 14 15 Most Carried 15 | 7 15 15 Average Carried 11 | 6 11 14 Final Capacity 15 | 8 15 15 Final Carried 15 | 7 15 11 Class Distribution -------------------- 100% | Mutant Dominant Class ---------------- Mutant | -10/Materials Mutant | -10/Mines Resources | -11 -10 -10 ----------- Run | Yrd Mat Min Matter Collected 762 | 247 440 75 Remotely . | . . . Salvage Created 814 | 142 570 102 Parts 66 | 15 48 3 Haulers Intercepted 2 | . 2 . Recyclers Shooed 1 | . 1 . Parts Field Recycled . | . . . Retrieved Matter . | . . . Parts Self-Destructed . | . . . Prevented . | . . . Kills | -11 -10 -10 ------- Run | Yrd Mat Min Combat Hostiles Destroyed 16 | . 13 3 Guns 12 | . 9 3 AOE 4 | . 4 . Classes Destroyed 10 | 2 7 1 Worker 2 | . 2 . Builder 2 | . 2 . Tunneler 6 | 5 1 . Hauler 2 | . 2 . Recycler 3 | 1 2 . Operator 1 | . 1 . Watcher 1 | . 1 . Swarmer 6 | . 6 . Grunt 9 | . 7 2 Assembled 1 | . . 1 Best Kill Streak 5 | 4 5 1 Combat Bots Only 3 | . 3 1 Max Kills in Single Turn 2 | 1 2 1 Gunslinging . | . . . Exploded 1 | . 1 . Melee . | . . . Uniques/NPCs Destroyed . | . . . Combat | -11 -10 -10 -------- Run | Yrd Mat Min Hostile Shots Fired 80 | . 47 33 Missed 18 | . 14 4 Damage Taken 1021 | . 356 665 Core 259 | . 63 196 Absorbed by Shields . | . . . Regen/Repaired (Parts) 68 | . 68 . Core Remaining (%) 100 | 100 . . Volleys Fired 99 | 17 61 21 Largest 2 | 2 2 2 Hottest 80 | 60 70 80 Shots Fired 177 | 34 104 39 Gun 168 | 34 95 39 Cannon . | . . . Launcher 9 | . 9 . Special . | . . . Kinetic 84 | 17 51 16 Thermal 80 | 17 44 19 Explosive 9 | . 9 . Electromagnetic 4 | . . 4 Robot Hit Streak 9 | 9 8 9 Robot Miss Streak 4 | 2 4 3 Penetration Max . | . . . Secondary Targets 1 | . 1 . Max Gunslinging Chain 1 | . 1 . Shots Hit Robots 104 | 26 53 25 Core Hits 54 | 8 38 8 Critical Kills . | . . . Critical Parts Destroyed . | . . . Critical Strikes 1 | . 1 . Burn 1 | . 1 . Melee Attacks . | . . . Impact . | . . . Slashing . | . . . Piercing . | . . . Sneak Attacks . | . . . Combat Hostiles . | . . . Follow-up Attacks . | . . . Damage Inflicted 1628 | 238 1078 312 Guns 1097 | 238 552 307 Cannons . | . . . Explosions 511 | . 511 . Melee . | . . . Ramming 20 | . 15 5 Kinetic 521 | 105 304 112 Thermal 555 | 133 248 174 Explosive 511 | . 511 . Electromagnetic 21 | . . 21 Impact . | . . . Slashing . | . . . Piercing . | . . . Highest Corruption 12 | . 6 12 Average Corruption 5 | . 5 6 Corruption Purged . | . . . Corruption Blocked . | . . . Effects 59 | . 42 17 Message Errors 16 | . 12 4 Matter Fused 13 | . 9 4 Heat Flow Errors 3 | . 1 2 Energy Discharges 8 | . 4 4 Parts Fused 1 | . 1 . Data Loss (minor) 10 | . 8 2 Data Loss (major) 4 | . 4 . Misfires 1 | . . 1 Alerts 3 | . 3 . Overload Shots . | . . . Overflow Damage . | . . . Projectiles . | . . . Explosions . | . . . Melee . | . . . Knockbacks 1 | . . 1 Impact 1 | . . 1 Kinetic . | . . . Secondary . | . . . Self-Inflicted Damage . | . . . Shots . | . . . Rammed 2 | . 1 1 Targets Rammed 4 | . 3 1 Kicked . | . . . Crushed 2 | . 2 . Highest Temperature 271 | 60 119 271 Average Temperature 45 | 28 21 85 Received Heat Transfer 228 | . 114 114 Siege Activations . | . . . Robots Corrupted . | . . . Combat Hostiles . | . . . Parts Fried . | . . . Impact Corruptions . | . . . Robots Melted . | . . . Combat Hostiles . | . . . Parts Melted 1 | 1 . . Heat Transferred 1490 | 300 672 518 Parts Sabotaged . | . . . Parts Stolen . | . . . Parts Stripped . | . . . Power Chain Reactions . | . . . Alert | -11 -10 -10 ------- Run | Yrd Mat Min Peak Influence 274 | 30 274 142 Initial 82 | . 19 82 Average 86 | 14 92 72 Maximum Alert Level 1 | . 1 . Low Security (%) 89 | 100 86 100 Level 1 10 | . 13 . Level 2 . | . . . Level 3 . | . . . Level 4 . | . . . Level 5 . | . . . High Security . | . . . Max Security . | . . . Squads Dispatched 4 | . 4 . Investigation 3 | . 3 . Extermination . | . . . Reinforcement 1 | . 1 . Assault . | . . . Garrison . | . . . Intercept . | . . . Searches Triggered . | . . . Construction Impeded . | . . . Haulers Reinforced . | . . . Active Scanning Responses . | . . . Cargo Convoy Interrupts . | . . . Stealth | -11 -10 -10 --------- Run | Yrd Mat Min Distress Signals 1 | . 1 . Communications Jammed . | . . . Distress Signals . | . . . Times Spotted 40 | . 34 6 Peak Tracking Total 5 | . 5 2 Tactical Retreats 2 | . 1 1 Traps | -11 -10 -10 ------- Run | Yrd Mat Min Traps Triggered 5 | . 5 . Indirectly . | . . . Trap Hack Attempts . | . . . Triggered . | . . . Disarmed . | . . . Reprogrammed . | . . . Reused . | . . . Traps Extracted . | . . . Installed . | . . . Triggered 1 | . . 1 Machines | -11 -10 -10 ---------- Run | Yrd Mat Min Machines Disabled 1 | . 1 . Max in Single Turn 1 | . 1 . Machines Repaired . | . . . Machines Dismantled . | . . . Machines Sabotaged . | . . . Overloaded Fab Kills . | . . . Hacking | -11 -10 -10 --------- Run | Yrd Mat Min Machines Accessed 9 | . 9 . Terminals 6 | . 6 . Fabricators . | . . . Repair Stations 1 | . 1 . Recycling Units 2 | . 2 . Scanalyzers . | . . . Garrison Access . | . . . Total Hacks 32 | . 32 . Successful 20 | . 20 . Failed 11 | . 11 . Catastrophic . | . . . Database Lockouts 1 | . 1 . Manual 20 | . 20 . Terminals 27 | . 27 . Fabricators . | . . . Repair Stations 3 | . 3 . Recycling Units 2 | . 2 . Scanalyzers . | . . . Garrison Access . | . . . Terminal Hacks 8 | . 8 . Robot Analysis 3 | . 3 . Prototype ID Bank 3 | . 3 . Branch Access Points 1 | . 1 . Zone Layout 1 | . 1 . Fabricator Hacks . | . . . Repair Station Hacks 2 | . 2 . Scan Component 1 | . 1 . Repair 1 | . 1 . Recycling Unit Hacks . | . . . Scanalyzer . | . . . Garrison Access Hacks . | . . . Unauthorized Hacks 10 | . 10 . Terminals 8 | . 8 . Botnet 1 | . 1 . Operators 1 | . 1 . Skim 6 | . 6 . Fabricators . | . . . Repair Stations . | . . . Recycling Units 2 | . 2 . Tunnel 2 | . 2 . Scanalyzers . | . . . Garrison Access . | . . . Data Cores Recovered . | . . . Used . | . . . Hacking Detections 7 | . 7 . Full Trace Events . | . . . Feedback Events . | . . . Feedback Blocked . | . . . Robot Schematics Acquired . | . . . Robots Built . | . . . Authchips . | . . . Time . | . . . Total Robot Build Rating . | . . . Part Schematics Acquired . | . . . Parts Built . | . . . Authchips . | . . . Time . | . . . Total Part Build Rating . | . . . Parts Repaired 1 | . 1 . Time 26 | . 26 . Parts Recycled . | . . . Recycled Matter . | . . . Retrieved Matter . | . . . Retrieved Components . | . . . Parts Scanalyzed . | . . . Part Schematics Acquired . | . . . Parts Damaged . | . . . Bothacking | -11 -10 -10 ------------ Run | Yrd Mat Min Used RIF Installer . | . . . Robots Hacked . | . . . Non-combat . | . . . Combat . | . . . Robot Hacks Applied . | . . . Relay Couplers Released . | . . . Fabnet Peak Effective % . | . . . Robots Rewired . | . . . Allies Hacked . | . . . Hacks Repelled . | . . . Allies | -11 -10 -10 -------- Run | Yrd Mat Min Total Allies . | . . . Largest Group . | . . . Highest-Rated Group . | . . . Highest-Rated Ally . | . . . Total Orders . | . . . Ally Attacks . | . . . Total Damage . | . . . Kills . | . . . Allies Corrupted . | . . . Allies Melted . | . . . Intel | -11 -10 -10 ------- Run | Yrd Mat Min Robot Analysis Total 3 | . 3 . Derelict Logs Recovered . | . . . Drone Launches . | . . . Drone Recoveries . | . . . Exploration | -11 -10 -10 ------------- Run | Yrd Mat Min Turns Passed 2662 | 96 2028 538 Spaces Moved 1389 | 18 1077 294 Core . | . . . Treads 1389 | 18 1077 294 Legs . | . . . Wheels . | . . . Hover . | . . . Flight . | . . . Fastest Speed 160 | 160 160 160 Average Speed 160 | 160 160 160 Slowest Speed 160 | 160 160 160 Overloaded Moves . | . . . Propulsion Burnouts . | . . . Robots Hopped . | . . . Cave-ins Triggered . | . . . Exploration Rate (%) 47 | 2 99 42 Regions Visited 2 Branch Regions 1 Pre-discovered Areas 2 | . 2 . Known Exits Taken 1 | . 1 . Unknown Exits Taken 1 | 1 . . Scrap Searched . | . . . Spaces Dug 6 | . 6 . Terrain Destroyed 30 | . 30 . Melee . | . . . Projectile . | . . . AOE 30 | . 30 . Terrain Rammed . | . . . Walls Destroyed . | . . . Machines Disabled . | . . . Actions | -11 -10 -10 --------- Run | Yrd Mat Min Total 1659 | 53 1282 324 Wait 142 | 15 125 2 Move 1387 | 17 1076 294 Hop . | . . . Pick Up 8 | 1 7 . Fast Attach 1 | 1 . . Attach 4 | . . 4 Detach . | . . . Swap 12 | 2 9 1 Drop 2 | . 1 1 Fire 99 | 17 61 21 Melee . | . . . Ram . | . . . Kick . | . . . Crush 4 | . 3 1 Escape Stasis . | . . . Rewire . | . . . Trap . | . . . Miscellaneous . | . . . Route ------- -11/Scrapyard -10/Materials (discovered 5 exits: *Mat x3 / *Min / *Sub) -10/Mines (discovered 2 exits: Mat x2) History --------- Turn | Location | Event 24 | -11/Scrapyard | Discovered new exit (range 1) 97 | -11/Scrapyard | Entered Materials 315 | -10/Materials | Build established: Mutant 499 | -10/Materials | Identified exit to Mines 597 | -10/Materials | Derelicts attacked the area 656 | -10/Materials | Discovered new exit (range 5) 811 | -10/Materials | Discovered new exit (range 4) 1434 | -10/Materials | Repaired Lgt. Treads 1462 | -10/Materials | Central database locked down 1516 | -10/Materials | Discovered new exit (range 16) 1565 | -10/Materials | Learned Storage stockpile data 1602 | -10/Materials | Identified exit to Subcaves 1631 | -10/Materials | Learned location of 1 exit from Recycling 2125 | -10/Materials | Entered Mines 2126 | -10/Mines | Identified exit to Materials 2459 | -10/Mines | Core integrity fell below 50% 2537 | -10/Mines | Assembled infested the area 2542 | -10/Mines | Assisted by a Guerilla fighting off Assembled 2642 | -10/Mines | Core integrity fell below 20% 2646 | -10/Mines | System corruption reached 10% 2663 | -10/Mines | Destroyed by as-67686 with Assembled Blade Last Messages --------------- way!" 02574_ HV Slug penetrates as-38242. 02574_ as-38242 suffers critical hit (Destroy). 02574_ as-38242 destroyed. 02581_ System corrupted: Matter fused (-6). 02589_ BV-DVA(h) destroyed. 02602_ System corrupted: Energy discharge (-87). 02619_ System corrupted: FCS attempts to trigger Assault Rifle. 02619_ System corrupted: Assault Rifle misfires. 02639_ Seismic Detector destroyed. 02639_ System corrupted by crushing effect (+2). 02643_ Destroyed Asb. Hover Unit. 02645_ Assault Rifle destroyed. 02645_ System corrupted by crushing effect (+4). 02646_ as-14866 destroyed. 02648_ O4FDWD:IO L05E ZZHL>: VTGHAUTYNL 02651_ Lgt. Treads destroyed. 02656_ Med. Laser destroyed. 02663_ N#5WDKJSBWFC>YAIV ARMLTW:YS 7O 02663_ EM Pulse Gun destroyed. Map ----- +----------------------------------------------------+ | ?# #????????????????????????????????????????????? | | ?# #####????????????????????????????????????????? | | ## ##???????????????????????????????????????? | | """ ##??????????????????????????????????????? | | """ ##?????????????????????????????????????? | | """ ##????????????????????????????????????? | | ##???????????????????????????????????? | | ##### #???????????????????????????????????? | | ##???## #???????????????????????????????????? | | #????## #???????????????????????????????????? | | #????# #???????????????????????????????????? | | ##????# #???????????????????????????????????? | | ##?????## #???????????????????????????????????? | | ????###### #???????????????????????????????????? | | ????# ##??????????????????????????????????? | | ????# #??????????????????????????????????? | | ?#### #### #??????????????????????????????????? | | ?# #???# ##??????????????????????###???????? | | ?# #????# ###???????? #??????????# ???????? | | ?# #####?????# ##??????# ??????????# #???????? | | ?# #??????????# #??????# ##?????????# ####????? | | ?# #??????????# #??????#% ##????????# ##???? | | ?# #?????????## ####??## #????????# ##??? | | ?# #???????### #??# #???????## #??? | | ## #????#### ### ####% #????????# #??? | | #????# #### @ = #????????## #??? | | #???# #### ####a%]###???????# ## ##??? | | ####???# ##??# ## #### = ###???????# ####???? | | #??????### ###### ## ####"% ###??????# #??????? | | ##???????#### ## ##??????# #??????? | | ############ ##### ## % #??????# #??????? | | #???### # ######## #??????? | | ############ #???# # # #??????? | | #??????????# #???# # # #??????? | | ##?????????# #???### ######### ##??????? | | ##????????# #????################### ###?????? | | # ##???????####????#### # % #?????? | | ## ##?????????????????#### ### ######### ####### | | ?# #????????????????????###?# #???????# | | ?# #????????????????????????# #???????# ## #### | | # #???????????????????????# #?????### ## #??? | | #????????????????????? #????## ## #??? | | # #????????????????????#####????# #??? | | ##### ##????????????????????????????# #??? | | ?????###?????????????????????????????# ##??? | | ?????????????????????????????????????#########???? | | ?????????????????????????????????????????????????? | | ?????????????????????????????????????????????????? | | | | | +----------------------------------------------------+ Best States ------------- Heat Dissipation 25 Energy Generation 10 Energy Capacity 250 Matter Stores 300 Matter Capacity 300 Sight Range 16 Terrain Scan Density 10 Evasion (%) 40 Recoil Reduction 2 Item Schematics ----------------- None Robot Schematics ------------------ None Fabricated ------------ Nothing Alien Tech Used ----------------- None Achievements -------------- None Challenges ------------ None Game ------ Seed InsulatedCatalystBlaster Manual? 0 Play Time 00:20:01 Cumulative 150.3 hours Start 2024.09.30 @ 20:10:05 End 2024.09.30 @ 20:43:24 Sessions 1 Manual Loads 0 Difficulty Rogue Special Mode None Game No. 81 Rogue 81 Adventurer 0 Explorer 0 Win Type - Total 1 Types 0/0/0/1/0/0/0/0/0 Lore% 55 Gallery% 61 Achievement% 50 Wizard Run 0 Options --------- Layout 0 ASCII 0 Keyboard 0 Movement Numpad Keybinds 1 Fullscreen 2 Font 18/X11 Map View 76x50 Zoom Use 0% Tactical HUD 1 Map Filters NONE Filters NONE Steam 1 RUN: f71f0af4-8812-4caa-ae36-6f49d752fa69